[Event "*** SCC Grand Prix: Titled Tuesday Blitz"]
[Site "Chess.com"]
[Date "2020.09.29"]
[Round "5"]
[White "MPGM"]
[Black "Ze-Pequeno"]
[Result "1-0"]
[WhiteElo "2428"]
[BlackElo "2249"]
[TimeControl "180+1"]
[EndTime "10:55:19 PDT"]
[Termination "MPGM won on time"]

1. c4 {[%clk 0:03:00.9]} 1... Nf6 {[%clk 0:02:57.8]} 2. Nc3 {[%clk 0:03:00.9]}
2... c5 {[%clk 0:02:57.7]} 3. e3 {[%clk 0:02:57.5]} 3... e6 {[%clk 0:02:57.1]}
4. Nf3 {[%clk 0:02:55.6]} 4... d5 {[%clk 0:02:56.5]} 5. d4 {[%clk 0:02:51.5]}
5... a6 {[%clk 0:02:56]} 6. a3 {[%clk 0:02:37.8]} 6... dxc4 {[%clk 0:02:54]} 7.
Bxc4 {[%clk 0:02:38.7]} 7... b5 {[%clk 0:02:53.8]} 8. Bd3 {[%clk 0:02:34.8]}
8... Bb7 {[%clk 0:02:53.3]} 9. O-O {[%clk 0:02:33.5]} 9... Nbd7 {[%clk
0:02:52.8]} 10. Re1 {[%clk 0:02:31.9]} 10... Qb8 {[%clk 0:02:38.9]} 11. Bc2
{[%clk 0:02:26.9]} 11... Bd6 {[%clk 0:02:35.9]} 12. e4 {[%clk 0:02:24.8]} 12...
cxd4 {[%clk 0:02:34.5]} 13. Nxd4 {[%clk 0:02:25.5]} 13... Bxh2+ {[%clk
0:02:30.4]} 14. Kh1 {[%clk 0:02:20]} 14... Be5 {[%clk 0:02:21]} 15. Nf3 {[%clk
0:02:09.4]} 15... Bf4 {[%clk 0:02:17.7]} 16. Bxf4 {[%clk 0:01:57.2]} 16... Qxf4
{[%clk 0:02:15.5]} 17. e5 {[%clk 0:01:53]} 17... Ng4 {[%clk 0:02:11.1]} 18. Kg1
{[%clk 0:01:35.9]} 18... Rd8 {[%clk 0:01:46]} 19. Ne4 {[%clk 0:01:31.5]} 19...
Ndxe5 {[%clk 0:01:37.3]} 20. Qe2 {[%clk 0:01:07.1]} 20... Bxe4 {[%clk 0:01:13]}
21. Bxe4 {[%clk 0:01:01.6]} 21... Nxf3+ {[%clk 0:01:08.2]} 22. Qxf3 {[%clk
0:01:02.5]} 22... Qh2+ {[%clk 0:00:46.9]} 23. Kf1 {[%clk 0:01:02.3]} 23... Ne5
{[%clk 0:00:45.5]} 24. Bc6+ {[%clk 0:00:50.2]} 24... Ke7 {[%clk 0:00:44.7]} 25.
Qe4 {[%clk 0:00:46]} 25... Qh1+ {[%clk 0:00:38.1]} 26. Ke2 {[%clk 0:00:45.4]}
26... Qh5+ {[%clk 0:00:38.5]} 27. f3 {[%clk 0:00:43.5]} 27... Qg5 {[%clk
0:00:31.9]} 28. f4 {[%clk 0:00:30.4]} 28... Qg4+ {[%clk 0:00:29.1]} 29. Kf1
{[%clk 0:00:29.4]} 29... Nc4 {[%clk 0:00:27.5]} 30. Kg1 {[%clk 0:00:25.1]} 30...
Rd2 {[%clk 0:00:24.5]} 31. b3 {[%clk 0:00:20.7]} 31... Nd6 {[%clk 0:00:19.7]}
32. Qe3 {[%clk 0:00:18.9]} 32... Rc2 {[%clk 0:00:19.7]} 33. Rac1 {[%clk
0:00:18.4]} 33... Rxc1 {[%clk 0:00:18.4]} 34. Rxc1 {[%clk 0:00:19.3]} 34... Rd8
{[%clk 0:00:17.6]} 35. Qc5 {[%clk 0:00:17.1]} 35... Qxf4 {[%clk 0:00:16.5]} 36.
Rf1 {[%clk 0:00:16.8]} 36... Qh6 {[%clk 0:00:13.3]} 37. Qa7+ {[%clk 0:00:15.3]}
37... Nb7 {[%clk 0:00:11.1]} 38. Qxb7+ {[%clk 0:00:15.2]} 1-0

[Event "*** SCC Grand Prix: Titled Tuesday Blitz"]
[Site "Chess.com"]
[Date "2020.09.29"]
[Round "5"]
[White "Andreikka"]
[Black "tdf98pantani"]
[Result "1-0"]
[WhiteElo "2849"]
[BlackElo "2623"]
[TimeControl "180+1"]
[EndTime "10:55:21 PDT"]
[Termination "Andreikka won on time"]

1. c4 {[%clk 0:03:00.9]} 1... c6 {[%clk 0:02:58.2]} 2. Nf3 {[%clk 0:02:59.3]}
2... d5 {[%clk 0:02:57.2]} 3. d4 {[%clk 0:02:59.6]} 3... Nf6 {[%clk 0:02:56.9]}
4. e3 {[%clk 0:02:57.4]} 4... Bf5 {[%clk 0:02:54.7]} 5. Nc3 {[%clk 0:02:56.3]}
5... e6 {[%clk 0:02:54.8]} 6. Nh4 {[%clk 0:02:48.4]} 6... Be4 {[%clk 0:02:54.5]}
7. Qb3 {[%clk 0:02:47.8]} 7... Qc7 {[%clk 0:02:53.9]} 8. f3 {[%clk 0:02:48.2]}
8... Bg6 {[%clk 0:02:53.6]} 9. Bd2 {[%clk 0:02:48.2]} 9... Be7 {[%clk
0:02:52.7]} 10. Nxg6 {[%clk 0:02:48.9]} 10... hxg6 {[%clk 0:02:52.4]} 11. O-O-O
{[%clk 0:02:49.2]} 11... a6 {[%clk 0:02:50.5]} 12. c5 {[%clk 0:02:48]} 12...
Nbd7 {[%clk 0:02:49.6]} 13. Na4 {[%clk 0:02:47]} 13... e5 {[%clk 0:02:38]} 14.
Kb1 {[%clk 0:02:39]} 14... O-O {[%clk 0:02:35.4]} 15. g4 {[%clk 0:02:31.4]}
15... Rfe8 {[%clk 0:02:34.3]} 16. Be1 {[%clk 0:02:28.4]} 16... Nf8 {[%clk
0:02:13.6]} 17. Bg3 {[%clk 0:02:25.4]} 17... N6d7 {[%clk 0:02:13.9]} 18. h4
{[%clk 0:02:24.7]} 18... Ne6 {[%clk 0:02:03.8]} 19. g5 {[%clk 0:02:19.9]} 19...
Qc8 {[%clk 0:01:22.8]} 20. Qc2 {[%clk 0:02:11]} 20... exd4 {[%clk 0:01:13.9]}
21. exd4 {[%clk 0:02:09.9]} 21... Bd8 {[%clk 0:01:11.4]} 22. Bh3 {[%clk
0:02:02.7]} 22... Bc7 {[%clk 0:01:10.8]} 23. Bf2 {[%clk 0:02:03.3]} 23... Nf4
{[%clk 0:01:09.9]} 24. Bg4 {[%clk 0:02:02.1]} 24... Re2 {[%clk 0:01:09.6]} 25.
Rd2 {[%clk 0:02:02.2]} 25... Rxd2 {[%clk 0:01:08.2]} 26. Qxd2 {[%clk 0:02:03.1]}
26... Qd8 {[%clk 0:01:04.4]} 27. Be3 {[%clk 0:01:40.1]} 27... Nh5 {[%clk
0:00:57.7]} 28. Re1 {[%clk 0:01:33.3]} 28... Nf8 {[%clk 0:00:56.7]} 29. a3
{[%clk 0:01:31.9]} 29... f5 {[%clk 0:00:47.6]} 30. gxf6 {[%clk 0:01:24.9]} 30...
Qxf6 {[%clk 0:00:47.7]} 31. Bg5 {[%clk 0:01:25.4]} 31... Bf4 {[%clk 0:00:45.7]}
32. Qb4 {[%clk 0:00:59.7]} 32... Bxg5 {[%clk 0:00:41.2]} 33. hxg5 {[%clk
0:01:00.6]} 33... Qf4 {[%clk 0:00:26.3]} 34. Qxb7 {[%clk 0:00:57.1]} 34... Rb8
{[%clk 0:00:26.5]} 35. Qxc6 {[%clk 0:00:52]} 35... Qxd4 {[%clk 0:00:26.7]} 36.
Re8 {[%clk 0:00:39.9]} 36... Qd3+ {[%clk 0:00:21.7]} 37. Kc1 {[%clk 0:00:30.4]}
37... Rxe8 {[%clk 0:00:13.9]} 38. Qxe8 {[%clk 0:00:30.1]} 38... Nf4 {[%clk
0:00:14.5]} 39. Nc3 {[%clk 0:00:25.3]} 39... d4 {[%clk 0:00:14.6]} 40. Qe4
{[%clk 0:00:25.8]} 40... dxc3 {[%clk 0:00:11.5]} 41. Qxf4 {[%clk 0:00:26.3]}
41... cxb2+ {[%clk 0:00:03.3]} 42. Kxb2 {[%clk 0:00:27.2]} 42... Qe2+ {[%clk
0:00:03.6]} 43. Kc3 {[%clk 0:00:25.6]} 43... Qe1+ {[%clk 0:00:03.5]} 44. Qd2
{[%clk 0:00:25.2]} 1-0

[Event "*** SCC Grand Prix: Titled Tuesday Blitz"]
[Site "Chess.com"]
[Date "2020.09.29"]
[Round "5"]
[White "Susal_De_Silva"]
[Black "profofchess"]
[Result "1-0"]
[WhiteElo "2529"]
[BlackElo "2370"]
[TimeControl "180+1"]
[EndTime "10:55:25 PDT"]
[Termination "Susal_De_Silva won by resignation"]

1. e4 {[%clk 0:03:00.9]} 1... e6 {[%clk 0:02:59.6]} 2. d4 {[%clk 0:03:00.7]}
2... d5 {[%clk 0:03:00.5]} 3. Nc3 {[%clk 0:03:01.1]} 3... Bb4 {[%clk 0:03:00.3]}
4. e5 {[%clk 0:03:01.1]} 4... c5 {[%clk 0:02:59.9]} 5. a3 {[%clk 0:03:01.2]}
5... Bxc3+ {[%clk 0:02:59.4]} 6. bxc3 {[%clk 0:03:02.1]} 6... Ne7 {[%clk
0:02:59.9]} 7. Qg4 {[%clk 0:03:01.8]} 7... cxd4 {[%clk 0:02:58.5]} 8. Qxg7
{[%clk 0:02:56.3]} 8... Rg8 {[%clk 0:02:58.6]} 9. Qxh7 {[%clk 0:02:56.8]} 9...
Nbc6 {[%clk 0:02:59]} 10. Nf3 {[%clk 0:02:53.7]} 10... Qc7 {[%clk 0:02:56.6]}
11. Qd3 {[%clk 0:02:33.3]} 11... dxc3 {[%clk 0:02:09]} 12. Bf4 {[%clk 0:02:28]}
12... Rg4 {[%clk 0:02:04.4]} 13. Bg3 {[%clk 0:02:21.4]} 13... Re4+ {[%clk
0:02:03.8]} 14. Be2 {[%clk 0:02:18.9]} 14... Nf5 {[%clk 0:02:00.2]} 15. O-O
{[%clk 0:02:07.9]} 15... Nxg3 {[%clk 0:01:41.4]} 16. hxg3 {[%clk 0:02:08.8]}
16... Nxe5 {[%clk 0:01:41.2]} 17. Nxe5 {[%clk 0:02:07.9]} 17... Qxe5 {[%clk
0:01:39]} 18. Bf3 {[%clk 0:02:06.3]} 18... Rc4 {[%clk 0:00:58.4]} 19. Rfe1
{[%clk 0:01:58.1]} 19... Qd6 {[%clk 0:00:29]} 20. Qh7 {[%clk 0:01:53.2]} 20...
Ke7 {[%clk 0:00:25.3]} 21. Bh5 {[%clk 0:01:50.8]} 21... Kd7 {[%clk 0:00:12.3]}
22. Bxf7 {[%clk 0:01:45.5]} 22... Kc6 {[%clk 0:00:10.2]} 23. Rab1 {[%clk
0:01:29.4]} 23... Bd7 {[%clk 0:00:09.5]} 24. Qg6 {[%clk 0:01:25.8]} 24... Re4
{[%clk 0:00:06.6]} 25. Rxe4 {[%clk 0:01:05.1]} 25... dxe4 {[%clk 0:00:06.8]} 26.
Qxe4+ {[%clk 0:01:05.7]} 26... Qd5 {[%clk 0:00:07.3]} 27. Qe3 {[%clk 0:00:57.1]}
27... b6 {[%clk 0:00:06.6]} 28. Qxc3+ {[%clk 0:00:55.6]} 28... Qc5 {[%clk
0:00:06.6]} 29. Qf3+ {[%clk 0:00:52.4]} 29... Qd5 {[%clk 0:00:05.8]} 30. Qxd5+
{[%clk 0:00:46.8]} 30... Kxd5 {[%clk 0:00:06.2]} 31. Rd1+ {[%clk 0:00:44.3]}
31... Kc6 {[%clk 0:00:06.4]} 32. Bg6 {[%clk 0:00:44.8]} 32... Rc8 {[%clk
0:00:02.8]} 33. g4 {[%clk 0:00:42.1]} 33... e5 {[%clk 0:00:02.9]} 34. g5 {[%clk
0:00:40.2]} 34... Be6 {[%clk 0:00:02.9]} 35. Be4+ {[%clk 0:00:38.3]} 35... Kc7
{[%clk 0:00:03.3]} 36. g6 {[%clk 0:00:36.5]} 36... Rg8 {[%clk 0:00:03.7]} 37.
Rd3 {[%clk 0:00:35.8]} 37... b5 {[%clk 0:00:03.8]} 38. Rg3 {[%clk 0:00:35.3]}
38... Kb6 {[%clk 0:00:03.8]} 39. g7 {[%clk 0:00:34.9]} 39... a5 {[%clk
0:00:03.3]} 40. Bh7 {[%clk 0:00:34.4]} 40... b4 {[%clk 0:00:03.2]} 41. axb4
{[%clk 0:00:32.7]} 41... a4 {[%clk 0:00:04.1]} 42. Bxg8 {[%clk 0:00:32.3]} 42...
Bxg8 {[%clk 0:00:05]} 43. c4 {[%clk 0:00:29]} 43... e4 {[%clk 0:00:04.8]} 44.
Ra3 {[%clk 0:00:23.3]} 44... Bxc4 {[%clk 0:00:02.6]} 45. Rxa4 {[%clk 0:00:23.7]}
45... Kb5 {[%clk 0:00:02.8]} 46. Ra8 {[%clk 0:00:23.8]} 1-0

[Event "*** SCC Grand Prix: Titled Tuesday Blitz"]
[Site "Chess.com"]
[Date "2020.09.29"]
[Round "5"]
[White "TST2014"]
[Black "saraswathii"]
[Result "1-0"]
[WhiteElo "2564"]
[BlackElo "2378"]
[TimeControl "180+1"]
[EndTime "10:55:27 PDT"]
[Termination "TST2014 won on time"]

1. d4 {[%clk 0:03:00.9]} 1... g6 {[%clk 0:02:39.7]} 2. c4 {[%clk 0:02:58.2]}
2... Bg7 {[%clk 0:02:36.6]} 3. Nc3 {[%clk 0:02:57.7]} 3... e6 {[%clk 0:02:34.8]}
4. e4 {[%clk 0:02:55.4]} 4... Ne7 {[%clk 0:02:25.1]} 5. Bg5 {[%clk 0:02:47]}
5... h6 {[%clk 0:02:23.4]} 6. Be3 {[%clk 0:02:43.7]} 6... d5 {[%clk 0:02:18.5]}
7. f3 {[%clk 0:02:22.5]} 7... O-O {[%clk 0:02:03.3]} 8. Qd2 {[%clk 0:02:21.8]}
8... Kh7 {[%clk 0:01:58.4]} 9. O-O-O {[%clk 0:02:18.6]} 9... b6 {[%clk
0:01:56.2]} 10. g4 {[%clk 0:02:15.6]} 10... Bb7 {[%clk 0:01:54.2]} 11. cxd5
{[%clk 0:02:14.3]} 11... exd5 {[%clk 0:01:53.5]} 12. e5 {[%clk 0:02:14.8]} 12...
c5 {[%clk 0:01:52.5]} 13. f4 {[%clk 0:02:13.8]} 13... cxd4 {[%clk 0:01:47.8]}
14. Bxd4 {[%clk 0:02:12.6]} 14... Nbc6 {[%clk 0:01:38.5]} 15. Nf3 {[%clk
0:02:12.1]} 15... Nxd4 {[%clk 0:01:36.6]} 16. Nxd4 {[%clk 0:02:11.5]} 16... Rc8
{[%clk 0:01:29.8]} 17. h4 {[%clk 0:02:09.3]} 17... Nc6 {[%clk 0:01:25.8]} 18. h5
{[%clk 0:02:03.6]} 18... Nxd4 {[%clk 0:01:15]} 19. Qxd4 {[%clk 0:01:58.6]} 19...
Qc7 {[%clk 0:01:15.1]} 20. Kb1 {[%clk 0:01:48.3]} 20... Qc5 {[%clk 0:01:06.2]}
21. g5 {[%clk 0:01:38.4]} 21... Qxd4 {[%clk 0:01:02.8]} 22. Rxd4 {[%clk
0:01:35.3]} 22... hxg5 {[%clk 0:01:01.7]} 23. hxg6+ {[%clk 0:01:34.8]} 23... Kg8
{[%clk 0:00:56.2]} 24. Nxd5 {[%clk 0:01:29.5]} 24... Bxd5 {[%clk 0:00:52.7]} 25.
Rxd5 {[%clk 0:01:29.1]} 25... gxf4 {[%clk 0:00:50.1]} 26. gxf7+ {[%clk
0:01:20.7]} 26... Rxf7 {[%clk 0:00:51]} 27. Bh3 {[%clk 0:01:20.3]} 27... Re8
{[%clk 0:00:48.3]} 28. e6 {[%clk 0:01:20]} 28... Rc7 {[%clk 0:00:39.3]} 29. Rd7
{[%clk 0:01:17.5]} 29... Rxd7 {[%clk 0:00:35]} 30. exd7 {[%clk 0:01:18.4]} 30...
Rd8 {[%clk 0:00:34.2]} 31. Rf1 {[%clk 0:01:12.9]} 31... Bh6 {[%clk 0:00:31.4]}
32. Kc2 {[%clk 0:01:11.1]} 32... Kf7 {[%clk 0:00:29.7]} 33. Re1 {[%clk
0:01:11.4]} 33... Bg5 {[%clk 0:00:25]} 34. Kd3 {[%clk 0:01:11.3]} 34... Bf6
{[%clk 0:00:23.1]} 35. b4 {[%clk 0:01:08.5]} 35... Rh8 {[%clk 0:00:21.7]} 36.
Bf5 {[%clk 0:01:07.4]} 36... Rh5 {[%clk 0:00:15.2]} 37. Ke4 {[%clk 0:01:02.4]}
37... f3 {[%clk 0:00:14.2]} 38. Rf1 {[%clk 0:01:02.2]} 38... Rh4+ {[%clk
0:00:12.8]} 39. Kxf3 {[%clk 0:01:00.3]} 39... Rxb4 {[%clk 0:00:13.4]} 40. Re1
{[%clk 0:00:58.6]} 40... Be7 {[%clk 0:00:11.8]} 41. Bg6+ {[%clk 0:00:56.2]}
41... Kf8 {[%clk 0:00:10.1]} 42. Re2 {[%clk 0:00:50.2]} 42... Rb5 {[%clk
0:00:05.8]} 43. Re4 {[%clk 0:00:39.3]} 43... Rg5 {[%clk 0:00:04.4]} 44. Rf4+
{[%clk 0:00:38.5]} 44... Kg8 {[%clk 0:00:03.2]} 45. Bf7+ {[%clk 0:00:38.2]}
45... Kg7 {[%clk 0:00:02.8]} 46. Be6 {[%clk 0:00:38.6]} 46... Bd8 {[%clk
0:00:02.2]} 47. Rf7+ {[%clk 0:00:37.9]} 47... Kg6 {[%clk 0:00:01.9]} 48. Rf8
{[%clk 0:00:38.2]} 1-0

[Event "*** SCC Grand Prix: Titled Tuesday Blitz"]
[Site "Chess.com"]
[Date "2020.09.29"]
[Round "5"]
[White "vugarrasulov"]
[Black "Parhamov"]
[Result "1/2-1/2"]
[WhiteElo "2800"]
[BlackElo "2962"]
[TimeControl "180+1"]
[EndTime "10:55:28 PDT"]
[Termination "Game drawn by repetition"]

1. c4 {[%clk 0:03:00.9]} 1... e5 {[%clk 0:02:59.7]} 2. Nc3 {[%clk 0:03:01]} 2...
Bb4 {[%clk 0:02:59]} 3. g3 {[%clk 0:03:01.2]} 3... Ne7 {[%clk 0:02:58.4]} 4. Bg2
{[%clk 0:03:01.2]} 4... h5 {[%clk 0:02:58.6]} 5. h4 {[%clk 0:02:59.8]} 5... c6
{[%clk 0:02:57.6]} 6. Nf3 {[%clk 0:02:59.6]} 6... d6 {[%clk 0:02:54.8]} 7. O-O
{[%clk 0:02:59.4]} 7... Nd7 {[%clk 0:02:54.6]} 8. Ne4 {[%clk 0:02:53.2]} 8...
Nc5 {[%clk 0:02:35.5]} 9. Neg5 {[%clk 0:02:43.6]} 9... f6 {[%clk 0:02:29.5]} 10.
a3 {[%clk 0:02:34.9]} 10... Ba5 {[%clk 0:02:29.5]} 11. b4 {[%clk 0:02:32.8]}
11... fxg5 {[%clk 0:02:29.3]} 12. Nxg5 {[%clk 0:02:32.6]} 12... Ne6 {[%clk
0:02:23.9]} 13. Nxe6 {[%clk 0:02:23.3]} 13... Bxe6 {[%clk 0:02:24.8]} 14. bxa5
{[%clk 0:02:24]} 14... Bxc4 {[%clk 0:02:24.2]} 15. d3 {[%clk 0:02:23]} 15... Ba6
{[%clk 0:02:23.9]} 16. Bg5 {[%clk 0:01:59.4]} 16... Qxa5 {[%clk 0:02:23.2]} 17.
Qb3 {[%clk 0:01:59.9]} 17... d5 {[%clk 0:02:22.2]} 18. e4 {[%clk 0:01:36.6]}
18... Qb5 {[%clk 0:02:11.6]} 19. Qxb5 {[%clk 0:01:35.3]} 19... Bxb5 {[%clk
0:02:10.6]} 20. Bxe7 {[%clk 0:01:34.2]} 20... Kxe7 {[%clk 0:02:10.6]} 21. exd5
{[%clk 0:01:34.8]} 21... cxd5 {[%clk 0:01:48]} 22. Bxd5 {[%clk 0:01:35.7]} 22...
Rad8 {[%clk 0:01:47.2]} 23. Bxb7 {[%clk 0:01:31.5]} 23... Rxd3 {[%clk
0:01:47.3]} 24. Rfe1 {[%clk 0:01:30.3]} 24... Kf6 {[%clk 0:01:45.3]} 25. a4
{[%clk 0:01:24.9]} 25... Bd7 {[%clk 0:01:43.8]} 26. a5 {[%clk 0:01:25.3]} 26...
Rd8 {[%clk 0:01:39.1]} 27. a6 {[%clk 0:01:23.1]} 27... Bb5 {[%clk 0:01:34.9]}
28. Kg2 {[%clk 0:01:14]} 28... g6 {[%clk 0:01:33.8]} 29. Ra5 {[%clk 0:01:12.8]}
29... Rb3 {[%clk 0:01:32.3]} 30. Ra2 {[%clk 0:01:07.2]} 30... Bc4 {[%clk
0:01:31.5]} 31. Rc2 {[%clk 0:01:05.9]} 31... Rd4 {[%clk 0:01:31]} 32. Rec1
{[%clk 0:01:04.7]} 32... Rb4 {[%clk 0:01:30.5]} 33. Rc3 {[%clk 0:01:02.9]} 33...
e4 {[%clk 0:01:27.1]} 34. Re1 {[%clk 0:01:01.2]} 34... Ke5 {[%clk 0:01:24.6]}
35. Rce3 {[%clk 0:01:00.7]} 35... Bd5 {[%clk 0:01:20.8]} 36. Bxd5 {[%clk
0:00:59.1]} 36... Rxd5 {[%clk 0:01:21.3]} 37. f3 {[%clk 0:00:51.9]} 37... Rd2+
{[%clk 0:01:18.8]} 38. Kh3 {[%clk 0:00:40.5]} 38... Rdd4 {[%clk 0:01:15.6]} 39.
Rc3 {[%clk 0:00:27.5]} 39... Rdc4 {[%clk 0:01:09.9]} 40. Ra3 {[%clk 0:00:26.2]}
40... Ra4 {[%clk 0:01:09.1]} 41. Rb3 {[%clk 0:00:25.8]} 41... Rxa6 {[%clk
0:01:03.9]} 42. Rb5+ {[%clk 0:00:26.2]} 42... Kf6 {[%clk 0:01:03.7]} 43. fxe4
{[%clk 0:00:25.4]} 43... Rb6 {[%clk 0:01:01.8]} 44. Rxb6+ {[%clk 0:00:24.4]}
44... axb6 {[%clk 0:01:01.5]} 45. Rb1 {[%clk 0:00:25.3]} 45... Rc6 {[%clk
0:00:58]} 46. Kg2 {[%clk 0:00:25.1]} 46... Ke5 {[%clk 0:00:57.4]} 47. Kf3 {[%clk
0:00:25.6]} 47... Kd6 {[%clk 0:00:49]} 48. Kf4 {[%clk 0:00:25.3]} 48... Kc5
{[%clk 0:00:38.2]} 49. e5 {[%clk 0:00:25.2]} 49... Kd5 {[%clk 0:00:34.3]} 50.
Rd1+ {[%clk 0:00:23.9]} 50... Ke6 {[%clk 0:00:34]} 51. Rb1 {[%clk 0:00:24.5]}
51... Rc4+ {[%clk 0:00:32.6]} 52. Kf3 {[%clk 0:00:25.1]} 52... Rc3+ {[%clk
0:00:32.1]} 53. Kf4 {[%clk 0:00:25.2]} 53... Rc4+ {[%clk 0:00:32]} 54. Kf3
{[%clk 0:00:25.3]} 54... Rc3+ {[%clk 0:00:31.8]} 55. Kf4 {[%clk 0:00:25.5]}
55... Rc4+ {[%clk 0:00:32]} 1/2-1/2

[Event "*** SCC Grand Prix: Titled Tuesday Blitz"]
[Site "Chess.com"]
[Date "2020.09.29"]
[Round "5"]
[White "angryhorse9"]
[Black "mapleaff"]
[Result "1-0"]
[WhiteElo "2547"]
[BlackElo "2374"]
[TimeControl "180+1"]
[EndTime "10:55:28 PDT"]
[Termination "angryhorse9 won by checkmate"]

1. e4 {[%clk 0:03:00.9]} 1... e5 {[%clk 0:03:00.3]} 2. Bc4 {[%clk 0:03:00.5]}
2... Nf6 {[%clk 0:02:59.6]} 3. d3 {[%clk 0:03:01]} 3... Bc5 {[%clk 0:02:58.6]}
4. Nc3 {[%clk 0:03:00.2]} 4... h6 {[%clk 0:02:57.5]} 5. f4 {[%clk 0:02:59.4]}
5... d6 {[%clk 0:02:56.8]} 6. Nf3 {[%clk 0:02:59.5]} 6... Nc6 {[%clk 0:02:53.7]}
7. f5 {[%clk 0:02:57.2]} 7... Na5 {[%clk 0:02:51.1]} 8. Qe2 {[%clk 0:02:55.8]}
8... Nxc4 {[%clk 0:02:50.7]} 9. dxc4 {[%clk 0:02:56.7]} 9... Bd7 {[%clk
0:02:40.4]} 10. Be3 {[%clk 0:02:56.3]} 10... Bb6 {[%clk 0:02:35.3]} 11. O-O-O
{[%clk 0:02:52.7]} 11... Bc6 {[%clk 0:02:32.6]} 12. Bxb6 {[%clk 0:02:44.6]}
12... axb6 {[%clk 0:02:31.9]} 13. g4 {[%clk 0:02:45.3]} 13... Nd7 {[%clk
0:02:25.6]} 14. h4 {[%clk 0:02:37.7]} 14... Qe7 {[%clk 0:02:08.8]} 15. g5 {[%clk
0:02:36.2]} 15... O-O-O {[%clk 0:02:07.5]} 16. b3 {[%clk 0:02:20.5]} 16... Nc5
{[%clk 0:02:03]} 17. b4 {[%clk 0:02:16.1]} 17... Na4 {[%clk 0:01:53.2]} 18. Nxa4
{[%clk 0:02:10.7]} 18... Bxa4 {[%clk 0:01:54.1]} 19. b5 {[%clk 0:02:11.2]} 19...
hxg5 {[%clk 0:01:46]} 20. hxg5 {[%clk 0:02:09.4]} 20... Rxh1 {[%clk 0:01:46.9]}
21. Rxh1 {[%clk 0:02:09.8]} 21... d5 {[%clk 0:01:47.8]} 22. exd5 {[%clk
0:01:58.4]} 22... Qa3+ {[%clk 0:01:47]} 23. Kb1 {[%clk 0:01:53.3]} 23... Qb4+
{[%clk 0:01:27.7]} 24. Kc1 {[%clk 0:01:51.6]} 24... Qa3+ {[%clk 0:01:22.2]} 25.
Kd2 {[%clk 0:01:44.8]} 25... Qxa2 {[%clk 0:01:04]} 26. Ke3 {[%clk 0:01:43.6]}
26... Qb2 {[%clk 0:00:57.5]} 27. Qd2 {[%clk 0:01:34.6]} 27... f6 {[%clk
0:00:47.7]} 28. g6 {[%clk 0:01:27.7]} 28... Bxc2 {[%clk 0:00:43]} 29. Kf2 {[%clk
0:01:14.6]} 29... Qb3 {[%clk 0:00:30.9]} 30. Qe3 {[%clk 0:00:29.4]} 30... Qb4
{[%clk 0:00:11.6]} 31. Rh7 {[%clk 0:00:15.6]} 31... Bxf5 {[%clk 0:00:09.8]} 32.
Rxg7 {[%clk 0:00:16]} 32... Qxc4 {[%clk 0:00:08.3]} 33. d6 {[%clk 0:00:09.6]}
33... Qc2+ {[%clk 0:00:06.5]} 34. Kg3 {[%clk 0:00:08.9]} 34... cxd6 {[%clk
0:00:05.2]} 35. Qxb6 {[%clk 0:00:07]} 35... Be4 {[%clk 0:00:05]} 36. Qe3 {[%clk
0:00:05.6]} 36... d5 {[%clk 0:00:04.7]} 37. Re7 {[%clk 0:00:04.5]} 37... d4
{[%clk 0:00:04.8]} 38. Qa3 {[%clk 0:00:04.8]} 38... Qc4 {[%clk 0:00:03.4]} 39.
Qa8# {[%clk 0:00:04.8]} 1-0

[Event "*** SCC Grand Prix: Titled Tuesday Blitz"]
[Site "Chess.com"]
[Date "2020.09.29"]
[Round "5"]
[White "aloe_normansen"]
[Black "parintele_chess"]
[Result "1-0"]
[WhiteElo "2351"]
[BlackElo "2140"]
[TimeControl "180+1"]
[EndTime "10:55:30 PDT"]
[Termination "aloe_normansen won by resignation"]

1. e4 {[%clk 0:03:00.9]} 1... c5 {[%clk 0:02:54.9]} 2. Nf3 {[%clk 0:03:00.2]}
2... Nc6 {[%clk 0:02:55.1]} 3. d4 {[%clk 0:03:00.4]} 3... cxd4 {[%clk 0:02:56]}
4. Nxd4 {[%clk 0:03:01.3]} 4... e5 {[%clk 0:02:56.5]} 5. Nb5 {[%clk 0:03:00.4]}
5... a6 {[%clk 0:02:56.6]} 6. Nd6+ {[%clk 0:03:00.1]} 6... Bxd6 {[%clk
0:02:57.1]} 7. Qxd6 {[%clk 0:03:01]} 7... Qf6 {[%clk 0:02:57.7]} 8. Qd1 {[%clk
0:02:59.9]} 8... Qg6 {[%clk 0:02:57.6]} 9. Nc3 {[%clk 0:02:57.5]} 9... d5 {[%clk
0:02:57.1]} 10. Qxd5 {[%clk 0:02:45.1]} 10... Nge7 {[%clk 0:02:49.6]} 11. Qd1
{[%clk 0:02:38.4]} 11... Bg4 {[%clk 0:02:38.1]} 12. f3 {[%clk 0:02:34.2]} 12...
Rd8 {[%clk 0:02:37.5]} 13. Bd2 {[%clk 0:02:30.7]} 13... Be6 {[%clk 0:02:32.1]}
14. g3 {[%clk 0:02:05.9]} 14... Nd4 {[%clk 0:02:13.8]} 15. Bg2 {[%clk
0:01:48.9]} 15... Bc4 {[%clk 0:02:10.9]} 16. b3 {[%clk 0:01:46.6]} 16... Bb5
{[%clk 0:02:02]} 17. Nxb5 {[%clk 0:01:43.2]} 17... axb5 {[%clk 0:02:02.9]} 18.
O-O {[%clk 0:01:34.6]} 18... O-O {[%clk 0:02:02.4]} 19. c3 {[%clk 0:01:34.1]}
19... Ndc6 {[%clk 0:02:01.4]} 20. Qe2 {[%clk 0:01:32.6]} 20... b4 {[%clk
0:01:52.7]} 21. Rad1 {[%clk 0:01:18.4]} 21... f5 {[%clk 0:01:46]} 22. cxb4
{[%clk 0:01:10.5]} 22... Nd4 {[%clk 0:01:44.2]} 23. Qc4+ {[%clk 0:01:10.5]}
23... Kh8 {[%clk 0:01:42]} 24. Be3 {[%clk 0:01:02]} 24... Nec6 {[%clk
0:01:35.8]} 25. b5 {[%clk 0:00:59.8]} 25... f4 {[%clk 0:01:25.5]} 26. Bf2 {[%clk
0:00:44.6]} 26... fxg3 {[%clk 0:01:13.4]} 27. Bxg3 {[%clk 0:00:45.5]} 27... Na5
{[%clk 0:01:11.5]} 28. Qc7 {[%clk 0:00:42.8]} 28... b6 {[%clk 0:01:00]} 29. Qxe5
{[%clk 0:00:39.7]} 29... Rfe8 {[%clk 0:00:29.8]} 30. Rxd4 {[%clk 0:00:20.1]}
30... Rxe5 {[%clk 0:00:25.3]} 31. Rxd8+ {[%clk 0:00:20.5]} 31... Re8 {[%clk
0:00:25.9]} 32. Rfd1 {[%clk 0:00:19.7]} 32... h5 {[%clk 0:00:22.9]} 33. f4
{[%clk 0:00:18.4]} 33... Rxd8 {[%clk 0:00:20.3]} 34. Rxd8+ {[%clk 0:00:19.3]}
34... Kh7 {[%clk 0:00:20.7]} 35. e5 {[%clk 0:00:18.9]} 35... Qb1+ {[%clk
0:00:20.5]} 36. Bf1 {[%clk 0:00:19.1]} 36... Qxa2 {[%clk 0:00:16.5]} 37. Bd3+
{[%clk 0:00:19.1]} 37... g6 {[%clk 0:00:15.6]} 38. Rd7+ {[%clk 0:00:19.3]} 38...
Kg8 {[%clk 0:00:12.9]} 39. Bxg6 {[%clk 0:00:16.8]} 39... Qxb3 {[%clk 0:00:13.1]}
40. Kg2 {[%clk 0:00:15.8]} 40... Qc2+ {[%clk 0:00:13.1]} 41. Bxc2 {[%clk
0:00:15.2]} 1-0